bitfinex/quotes_SOLUSD_20240906
["timestamp","ask_amount","ask_price","bid_price","bid_amount"]
[1725656090943,10.0,121.81,121.61,1.23872336]
[1725656091149,8.215,121.73,121.66,28.7683]
[1725656091363,10.0,121.76,121.66,28.7683]
[1725656091364,8.2142,121.74,121.66,20.5489]
[1725656091552,20.525,121.81,121.66,20.5489]
[1725656091553,10.0,121.78,121.67,1.23761904]
[1725656091767,10.0,121.84,121.7,28.4569]
[1725656091956,22.57104149,121.85,121.7,28.4569]
[1725656091957,18.2083,121.83,121.75,28.7455]
[1725656092166,11.63940637,121.91,121.76,46.00253062]
[1725656092371,50.0,122.01,121.78,20.5279]
[1725656092372,12.05201405,121.89,121.78,20.5279]
[1725656092666,10.0,121.89,121.79,45.0]
[1725656092883,8.2066,121.86,121.79,53.2106]
[1725656093378,18.2073,121.85,121.79,45.0]
[1725656093592,8.2083,121.83,121.79,45.0]
[1725656093871,20.5082,121.91,121.79,45.0]
[1725656093872,8.2062,121.86,121.79,45.0]
[1725656094076,8.2062,121.86,121.79,53.2106]
[1725656094272,20.5082,121.91,121.79,53.2106]
[1725656094273,10.0,121.91,121.82,8.2084]
[1725656094472,20.5004,121.95,121.83,45.0]
[1725656094473,8.2043,121.89,121.83,45.0]
[1725656094676,8.2043,121.89,121.79,65.5258]
[1725656094677,8.2049,121.88,121.82,1.23081244]
[1725656094973,10.0,121.86,121.82,45.0]
[1725656095279,8.2059,121.87,121.8,1.23121626]
[1725656096166,8.2049,121.88,121.81,8.209]
[1725656096371,10.0,121.93,121.82,46.23060247]
[1725656096573,10.0,121.93,121.83,1.23055664]
[1725656096754,10.0,121.93,121.84,11.544]
[1725656096959,8.2051,121.88,121.85,45.0]
[1725656097158,10.0,121.9,121.85,45.0]
[1725656097369,10.0,121.92,121.85,45.0]
[1725656097572,8.2024,121.92,121.85,46.22968107]
[1725656097782,10.0,121.94,121.85,46.22991589]
[1725656098287,8.2022,121.92,121.85,46.22991589]
[1725656098584,8.203,121.91,121.85,45.0]
[1725656098783,10.0,121.94,121.85,46.2297046]
[1725656098959,10.0,121.94,121.85,66.7465046]
[1725656098960,8.2019,121.93,121.85,66.7465046]
[1725656099489,10.0,121.94,121.85,66.7465046]
[1725656099490,8.2022,121.92,121.85,66.7465046]
[1725656099676,61.4872,121.98,121.84,19.751]
[1725656099677,10.0,121.89,121.84,11.544]
[1725656099862,10.0,121.87,121.84,11.544]
[1725656100182,10.0,121.87,121.76,20.5315]
[1725656100183,10.0,121.81,121.76,28.5612]
[1725656100759,18.2109,121.79,121.76,28.5612]
[1725656100959,54.05670022,121.93,121.76,28.5612]
[1725656100960,10.0,121.86,121.77,1.23381071]
[1725656101186,8.2076,121.84,121.77,9.44484983]
[1725656101364,41.0078,121.93,121.77,9.44484983]
[1725656101365,10.0,121.88,121.77,1.23284983]
[1725656101565,10.0,121.91,121.85,8.2066]
[1725656101772,10.0,121.91,121.81,20.5226]
[1725656101773,8.2028,121.91,121.81,20.5226]
[1725656101983,20.5004,121.95,121.81,20.5226]
[1725656101984,10.0,121.89,121.81,20.5226]
[1725656102160,10.0,121.91,121.83,8.208]
[1725656102361,1.4229348,121.92,121.84,65.5177]
[1725656102583,10.0,121.95,121.85,13.15162793]
[1725656102783,10.0,121.95,121.86,45.0]
[1725656102995,10.0,121.92,121.86,45.0]
[1725656103288,8.2049,121.88,121.86,45.0]
[1725656103600,10.0,121.94,121.86,46.23006608]
[1725656103791,10.0,121.98,121.87,30.6817]
[1725656104086,2.05072072,122.03,121.85,11.923]
[1725656104087,10.0,121.91,121.85,11.923]
[1725656104407,2.05059918,121.97,121.85,11.923]
[1725656104408,10.0,121.93,121.85,11.923]
[1725656104560,23.96404314,121.97,121.86,1.22985461]
[1725656104561,10.0,121.95,121.86,1.22985461]
[1725656104767,10.0,121.97,121.86,1.22985461]
[1725656105263,50.0,122.08,121.86,1.22985461]
[1725656105264,8.1981,121.98,121.91,8.2025]
[1725656105693,10.0,121.99,121.92,46.2269507]
[1725656105989,10.0,122.03,121.97,8.1985]
[1725656106201,50.0,122.15,121.94,12.4693]
[1725656106202,10.0,122.08,121.98,46.22590336]
[1725656106495,1.147524,122.2,121.98,46.22590336]
[1725656106496,10.0,122.1,122.04,8.1938]
[1725656106802,20.4687,122.14,122.04,8.1938]
[1725656106803,10.0,122.14,122.05,73.613]
[1725656106967,1.42029911,122.16,122.06,11.5439]
[1725656106968,10.0,122.1,122.06,11.5439]
[1725656107166,10.0,122.07,122.06,11.5439]
[1725656107564,8.196,122.01,121.99,28.613]
[1725656107793,10.0,122.02,121.99,28.613]
[1725656108000,10.0,122.06,121.99,28.613]
[1725656108297,8.1934,122.05,121.99,28.613]
[1725656108586,10.0,122.08,122.0,1.2245719]
[1725656108762,8.1922,122.07,122.0,1.2245719]
[1725656108961,8.1922,122.07,122.0,46.2245719]
[1725656109214,10.0,122.06,122.0,45.0]
[1725656109489,10.0,122.06,121.99,28.613]
[1725656109490,8.1964,122.01,121.99,28.613]
[1725656109665,18.1987,121.97,121.96,12.2177]
[1725656109866,10.0,122.08,121.91,29.0711]
[1725656109867,8.202,121.92,121.91,29.0711]
[1725656110070,2.0502724,121.98,121.89,11.4127]
[1725656110071,18.2034,121.9,121.89,11.4127]
[1725656110268,8.2068,121.85,121.84,29.0711]
[1725656110903,10.0,121.92,121.84,29.0711]
[1725656111611,10.0,121.87,121.84,29.0711]
[1725656111911,10.0,121.82,121.77,29.3545]
[1725656112111,30.5277,121.79,121.76,11.9111]
[1725656112287,30.5277,121.79,121.69,29.1723]
[1725656112288,8.2141,121.75,121.69,41.4156]
[1725656112494,30.5277,121.79,121.7,1.23505478]
[1725656112495,10.0,121.79,121.7,1.23505478]
[1725656112816,20.5205,121.83,121.71,1.2339603]
[1725656112993,10.0,121.79,121.69,41.4156]
[1725656113307,20.5262,121.8,121.69,41.4156]
[1725656113308,10.0,121.76,121.69,41.4156]
[1725656113622,2.05309977,121.78,121.69,41.4156]
[1725656113623,8.2163,121.71,121.69,41.4156]
[1725656113795,10.0,121.76,121.69,41.4156]
[1725656113992,8.2142,121.74,121.69,41.4156]
[1725656114314,10.0,121.76,121.69,41.4156]
[1725656114513,8.2152,121.73,121.69,41.4156]
[1725656114695,10.0,121.78,121.69,41.4156]
[1725656114880,8.211,121.79,121.7,1.23570236]
[1725656115086,8.2107,121.8,121.74,8.2141]
[1725656115410,10.0,121.84,121.75,1.23370701]
[1725656115587,10.0,121.86,121.75,1.23370701]
[1725656115786,2.05187683,121.95,121.7,1.23147861]
[1725656115787,10.0,121.83,121.7,1.23147861]
[1725656116005,10.0,121.85,121.73,20.5368]
[1725656116201,10.0,121.85,121.74,1.233545]
[1725656116392,8.2088,121.82,121.76,20.5317]
[1725656116587,10.0,121.85,121.78,8.2113]
[1725656116588,8.2079,121.84,121.78,8.2113]
[1725656116925,10.0,121.89,121.79,21.75783006]
[1725656117114,10.0,121.91,121.8,89.74100157]
[1725656117331,10.0,121.89,121.8,89.74100157]
[1725656117605,10.0,121.88,121.8,89.74100157]
[1725656117814,8.2081,121.83,121.8,88.5105]
[1725656117994,8.2095,121.81,121.8,43.5105]
[1725656118196,10.0,121.82,121.71,1.2333848]
[1725656118513,41.0438,121.83,121.69,20.5433]
[1725656118514,10.0,121.76,121.69,20.5433]
[1725656118717,10.0,121.74,121.67,12.5049]
[1725656118892,10.0,121.77,121.68,1.23635439]
[1725656119096,10.0,121.73,121.67,12.5049]
[1725656119602,10.0,121.71,121.66,29.0863]
[1725656119794,10.0,121.69,121.61,12.0513]
[1725656120003,8.2189,121.67,121.61,20.274]
[1725656120186,10.0,121.7,121.61,12.0513]
[1725656120385,10.0,121.68,121.62,8.2222]
[1725656120612,10.0,121.71,121.63,1.23873497]
[1725656120798,20.5383,121.73,121.63,1.23873497]
[1725656120799,10.0,121.69,121.63,1.23873497]
[1725656121300,2.05455892,121.77,121.64,1.23835232]
[1725656121301,10.0,121.71,121.64,1.23835232]
[1725656121489,10.0,121.71,121.64,9.45865232]
[1725656121690,10.0,121.73,121.64,1.23835232]
[1725656121890,22.58545892,121.77,121.67,8.2188]
[1725656121891,10.0,121.75,121.67,8.2188]
[1725656122131,8.2142,121.74,121.68,8.2182]
[1725656122297,10.0,121.73,121.62,1.23598638]
[1725656122491,1.42048955,121.77,121.62,1.23598638]
[1725656122492,10.0,121.71,121.62,65.555]
[1725656122693,10.0,121.69,121.61,12.0513]
[1725656122911,10.0,121.67,121.61,12.0513]
[1725656123114,1.42048955,121.77,121.61,12.0513]
[1725656123115,10.0,121.65,121.61,12.0513]
[1725656123499,8.2211,121.64,121.61,12.0513]
[1725656123818,8.2211,121.64,121.58,50.6808]
[1725656123819,10.0,121.61,121.58,30.1195]
[1725656124021,10.0,121.63,121.59,1.24102984]
[1725656124318,10.0,121.68,121.6,1.23952015]
[1725656124494,18.2196,121.66,121.61,20.5571]
[1725656124693,8.221,121.64,121.6,1.23962426]
[1725656124908,10.0,121.66,121.6,1.23962426]
[1725656125100,10.0,121.64,121.58,30.1195]
[1725656125308,2.05497976,121.7,121.58,30.1195]
[1725656125309,10.0,121.62,121.58,30.1195]
[1725656125721,18.2237,121.6,121.58,30.1195]
[1725656126019,10.0,121.6,121.54,13.2837]
[1725656126318,10.0,121.63,121.56,8.2262]
[1725656126617,18.2204,121.65,121.59,8.2237]
[1725656126915,10.0,121.67,121.59,8.2243]
[1725656127094,18.2193,121.67,121.61,8.2227]
[1725656127295,18.2193,121.67,121.54,54.4205]
[1725656127296,10.0,121.67,121.54,54.4205]
[1725656127498,61.6058,121.75,121.64,8.2209]
[1725656127499,10.0,121.7,121.64,8.2209]
[1725656127698,8.2176,121.69,121.65,45.0]
[1725656127917,18.2169,121.7,121.65,46.23878534]
[1725656128217,10.0,121.75,121.66,20.5485]
[1725656128434,10.0,121.72,121.67,57.0931]
[1725656128600,10.0,121.74,121.67,58.33001299]
[1725656128992,8.2149,121.73,121.67,58.33001299]
[1725656129193,11.42053887,121.76,121.69,20.544]
[1725656129458,18.2117,121.78,121.7,46.23543649]
[1725656129724,11.42005169,121.82,121.72,20.5387]
[1725656129905,10.0,121.82,121.73,46.23351108]
[1725656130104,18.2088,121.82,121.77,8.2121]
[1725656130422,20.5149,121.87,121.7,41.0826]
[1725656130423,10.0,121.87,121.78,46.2329187]
[1725656130727,10.0,121.87,121.81,8.2094]
[1725656130728,18.206,121.87,121.81,8.2094]
[1725656131022,10.0,121.87,121.82,53.2086]
[1725656131203,18.2056,121.87,121.82,45.0]
[1725656131403,10.0,121.85,121.82,45.0]
[1725656131612,18.2068,121.85,121.82,45.0]
[1725656131928,18.2068,121.85,121.81,45.0]
[1725656132094,18.2056,121.87,121.81,53.2094]
[1725656132292,11.177,121.97,121.82,1.23107262]
[1725656132293,10.0,121.89,121.82,1.23107262]
[1725656132520,10.0,121.89,121.84,8.2074]
[1725656132736,10.0,121.89,121.85,45.0]
[1725656133242,10.0,121.89,121.84,45.0]
[1725656133243,18.2043,121.89,121.84,45.0]
[1725656133405,18.2043,121.89,121.84,53.2073]
[1725656133607,10.0,121.92,121.86,20.5151]
[1725656133814,10.0,121.94,121.87,46.22941434]
[1725656134115,10.0,121.94,121.88,1.22840067]
[1725656134323,20.4931,122.0,121.88,1.22840067]
[1725656134324,18.1999,121.96,121.9,8.2034]
[1725656134544,8.2002,121.95,121.91,46.22786498]
[1725656134705,10.0,121.96,121.91,46.22786498]
[1725656135015,10.0,121.98,121.91,1.22786498]
[1725656135353,10.0,122.0,121.92,12.1973]
[1725656135649,10.0,122.02,121.93,46.22532385]
[1725656135929,10.0,122.02,121.94,1.22498959]
[1725656136510,8.196,122.02,121.94,1.22498959]
[1725656136832,10.0,121.95,121.82,12.0135]
[1725656137215,10.0,121.92,121.82,12.0135]
[1725656137419,2.05025839,121.99,121.82,12.0135]
[1725656137420,8.2062,121.86,121.82,12.0135]
[1725656137823,8.2081,121.83,121.82,12.0135]
[1725656138045,10.0,121.86,121.82,12.0135]
[1725656138204,10.0,121.88,121.82,12.0135]
[1725656138612,8.2052,121.88,121.82,12.0135]
[1725656139463,8.2052,121.88,121.83,45.0]
[1725656139607,8.2042,121.89,121.83,53.2081]
[1725656140034,8.2042,121.89,121.83,45.0]
[1725656140207,8.2049,121.88,121.83,45.0]
[1725656140408,8.2075,121.84,121.82,12.0135]
[1725656140613,10.0,121.87,121.82,12.0135]
[1725656140821,8.2055,121.87,121.82,20.2222]
[1725656141017,10.0,121.88,121.82,12.0135]
[1725656141446,8.2081,121.83,121.82,12.0135]
[1725656142260,41.0097,121.93,121.76,12.1443]
[1725656142261,10.0,121.81,121.76,12.1443]
[1725656142826,10.0,121.79,121.7,12.039]
[1725656143025,18.2148,121.74,121.7,12.039]
[1725656143243,8.2162,121.71,121.7,12.039]
[1725656143450,10.0,121.7,121.64,12.6396]
[1725656143937,20.5343,121.75,121.65,20.5506]
[1725656143938,10.0,121.72,121.65,20.5506]
[1725656144130,10.0,121.72,121.67,8.2188]
[1725656144525,18.2142,121.74,121.68,8.2182]
[1725656144753,18.2142,121.74,121.64,12.6396]
[1725656144754,10.0,121.74,121.64,12.6396]
[1725656144955,10.0,121.72,121.64,12.6396]
[1725656145132,8.2178,121.69,121.64,33.1905]
[1725656145328,10.0,121.7,121.64,33.1905]
[1725656145528,18.2169,121.7,121.65,8.2201]
[1725656145749,18.2169,121.7,121.64,33.1905]
[1725656145750,18.216,121.72,121.66,8.2195]
[1725656145957,18.216,121.72,121.64,33.1905]
[1725656145958,10.0,121.74,121.67,20.5471]
[1725656146254,18.2126,121.77,121.72,8.2155]
[1725656146435,18.2137,121.75,121.7,20.5421]
[1725656146639,10.0,121.75,121.7,28.759]
[1725656146969,18.2135,121.75,121.71,45.0]
[1725656147248,18.2135,121.75,121.64,12.6396]
[1725656147249,10.0,121.75,121.64,12.6396]
[1725656147457,18.2123,121.77,121.72,8.2153]
[1725656147628,10.0,121.74,121.69,20.5438]
[1725656147838,18.213,121.76,121.69,28.7607]
[1725656148027,10.0,121.71,121.65,20.5493]
[1725656148246,18.22,121.66,121.58,12.8173]
[1725656148567,10.0,121.64,121.58,12.8173]
[1725656148768,8.2216,121.63,121.58,12.8173]
[1725656149068,10.0,121.64,121.58,12.8173]
[1725656149250,10.0,121.68,121.58,12.8173]
[1725656149448,8.219,121.67,121.58,12.8173]
[1725656149663,10.0,121.81,121.58,12.8173]
[1725656149664,10.0,121.7,121.6,50.0]
[1725656149863,10.0,121.72,121.58,62.8173]
[1725656150375,8.2179,121.69,121.58,62.8173]
[1725656150547,10.0,121.72,121.62,20.0]
[1725656150753,30.5323,121.76,121.62,20.0]
[1725656150947,10.0,121.72,121.61,82.6374]
[1725656151152,10.0,121.7,121.61,32.6374]
[1725656151458,8.2173,121.7,121.61,32.6374]
[1725656151654,8.2163,121.71,121.61,32.6374]
[1725656152173,10.0,121.72,121.61,32.6374]
[1725656152368,8.2196,121.66,121.61,32.6374]
[1725656152543,41.076,121.73,121.61,32.6374]
[1725656152544,8.2217,121.63,121.61,32.6374]
[1725656152744,10.0,121.67,121.61,32.6374]
[1725656153062,8.2214,121.64,121.61,32.6374]
[1725656153251,10.0,121.67,121.61,32.6374]
[1725656153456,8.2196,121.66,121.61,32.6374]
[1725656153644,10.0,121.65,121.61,32.6374]
[1725656154354,18.2203,121.65,121.61,32.6374]
[1725656154560,8.2208,121.65,121.61,32.6374]
[1725656154775,8.2212,121.64,121.61,32.6374]
[1725656155583,10.0,121.65,121.58,12.8173]
[1725656156067,10.0,121.62,121.58,12.8173]
[1725656156270,8.2237,121.6,121.58,12.8173]
[1725656156664,18.2224,121.62,121.58,12.8173]
[1725656156866,8.2219,121.63,121.58,21.0422]
[1725656157171,10.0,121.62,121.58,12.8173]
[1725656157369,8.2235,121.61,121.58,12.8173]
[1725656157573,8.2224,121.62,121.58,12.8173]
[1725656157953,3.47549659,121.72,121.61,8.2229]
[1725656157954,18.2199,121.66,121.61,8.2229]
[1725656158159,41.0629,121.77,121.62,8.2217]
[1725656158160,10.0,121.67,121.62,8.2217]
[1725656158563,10.0,121.69,121.61,20.556]
[1725656158853,20.547,121.68,121.58,12.8173]
[1725656159052,10.0,121.62,121.58,12.8173]
[1725656159258,8.2243,121.59,121.58,12.8173]
[1725656159497,10.0,121.63,121.58,12.8173]
[1725656159675,18.2209,121.65,121.58,12.8173]
[1725656159873,18.2209,121.65,121.59,8.2242]
[1725656160171,10.0,121.65,121.6,28.7821]
[1725656160376,10.0,121.63,121.6,20.5586]
[1725656160550,10.0,121.63,121.58,12.8173]
[1725656160551,10.0,121.67,121.58,12.8173]
[1725656160875,8.2209,121.64,121.6,8.2236]
[1725656161078,10.0,121.56,121.51,23.1129]
[1725656161391,8.2271,121.55,121.51,23.1129]
[1725656161677,10.0,121.56,121.51,13.1129]
[1725656161849,18.2266,121.56,121.51,13.1129]
[1725656162053,18.2284,121.53,121.5,0.04115226]
[1725656163049,18.2284,121.53,121.52,11.49530967]
[1725656163458,58.7994,121.53,121.52,11.49530967]
[1725656164263,99.9415,121.53,121.52,9.67e-06]
[1725656164461,28.2297,121.51,121.5,6.193e-05]
[1725656164763,18.2351,121.43,121.42,0.07903409]
[1725656165154,38.2351,121.43,121.42,0.07903409]
[1725656165661,8.2351,121.43,121.42,0.07903409]
[1725656165861,8.2351,121.43,121.38,20.5961]
[1725656165862,10.0,121.43,121.38,20.5961]
[1725656166182,10.0,121.43,121.39,8.2378]
[1725656166492,10.0,121.44,121.41,20.5909]
[1725656166697,10.0,121.44,121.41,28.8272]
[1725656166900,10.0,121.49,121.44,20.5854]
[1725656167202,10.0,121.51,121.48,8.2316]
[1725656167387,10.0,121.53,121.48,8.2316]
[1725656167701,10.0,121.53,121.43,43.8188]
[1725656167879,10.0,121.53,121.49,45.0]
[1725656168055,2.05692377,121.6,121.49,45.0]
[1725656168056,10.0,121.51,121.49,45.0]
[1725656168260,10.0,121.46,121.43,43.8188]
[1725656168483,8.2326,121.47,121.43,43.8188]
[1725656168484,10.0,121.48,121.43,43.8188]
[1725656168784,10.0,121.48,121.45,8.2336]
[1725656169088,10.0,121.5,121.46,20.5812]
[1725656169264,10.0,121.48,121.43,43.8188]
[1725656169585,10.0,121.48,121.44,8.2344]
[1725656169760,10.0,121.46,121.45,45.0]
[1725656169954,10.0,121.46,121.42,20.5884]
[1725656170374,10.0,121.48,121.45,8.2337]
[1725656170687,10.0,121.49,121.44,20.5846]
[1725656170985,10.0,121.47,121.44,20.5846]
[1725656171182,10.0,121.47,121.44,28.8188]
[1725656171385,10.0,121.49,121.45,8.2337]
[1725656171772,8.2305,121.5,121.38,91.1915]
[1725656171773,10.0,121.51,121.46,20.5814]
[1725656172092,10.0,121.51,121.38,91.1915]
[1725656172093,10.0,121.47,121.43,28.822]
[1725656172268,10.0,121.47,121.44,8.2341]
[1725656172471,10.0,121.51,121.48,8.2311]
[1725656172658,10.0,121.62,121.44,50.0]
[1725656172659,10.0,121.56,121.44,50.0]
[1725656172863,10.0,121.58,121.48,12.5036]
[1725656173084,10.0,121.6,121.56,8.2263]
[1725656173384,2.05637956,121.67,121.56,8.2263]
[1725656173385,10.0,121.62,121.57,45.0]
[1725656173588,10.0,121.64,121.58,20.5612]
[1725656173789,10.0,121.74,121.58,20.5612]
[1725656173790,10.0,121.66,121.62,20.5541]
[1725656174097,10.0,121.66,121.59,45.0]
[1725656174098,18.2189,121.68,121.63,45.0]
[1725656174275,10.0,121.62,121.6,12.4209]
[1725656174460,10.0,121.62,121.61,45.0]
[1725656175176,10.0,121.64,121.61,45.0]
[1725656175492,18.2183,121.68,121.61,45.0]
[1725656175682,10.0,121.68,121.61,45.0]
[1725656176598,10.0,121.66,121.61,45.0]
[1725656176772,8.9131591,121.66,121.61,45.0]
[1725656177086,17.1360591,121.62,121.6,12.4209]
[1725656177296,8.9131591,121.64,121.6,12.4209]
[1725656177866,8.2209,121.65,121.6,12.4209]
[1725656178083,8.2209,121.65,121.44,63.1395]
[1725656178084,8.9131591,121.56,121.44,63.1395]
[1725656178366,41.1074,121.64,121.44,13.1395]
[1725656178367,8.9131591,121.54,121.44,13.1395]
[1725656178567,43.1638089,121.64,121.44,13.1395]
[1725656178568,8.9131591,121.52,121.44,13.1395]
[1725656178778,8.9131591,121.49,121.44,13.1395]
[1725656178993,8.9131591,121.47,121.44,13.1395]
[1725656179206,8.2338,121.45,121.44,13.1395]
[1725656179687,8.9131591,121.49,121.44,13.1395]
[1725656179891,8.9131591,121.51,121.44,13.1395]
[1725656180289,8.9131591,121.48,121.44,13.1395]
[1725656180486,8.2325,121.47,121.44,13.1395]
[1725656180808,8.9131591,121.5,121.44,13.1395]
[1725656181103,8.9131591,121.5,121.36,15.0]
[1725656181104,8.9131591,121.42,121.36,56.284]
[1725656181292,8.9131591,121.4,121.36,48.0443]
[1725656181595,8.9131591,121.43,121.39,8.2378]
[1725656181779,8.9131591,121.4,121.36,48.0443]
[1725656181979,8.9131591,121.42,121.36,48.0443]
[1725656182172,8.9131591,121.42,121.37,20.5976]
[1725656182774,8.9131591,121.42,121.38,8.2385]
[1725656183069,8.9131591,121.39,121.37,20.5976]
[1725656183270,2.05873189,121.47,121.37,20.5976]
[1725656183271,8.9131591,121.41,121.37,20.5976]
[1725656183497,8.9131591,121.37,121.36,15.0]
[1725656183880,17.1523591,121.37,121.36,15.0]
[1725656184601,34.6,121.46,121.36,15.0]
[1725656184602,8.9131591,121.39,121.36,15.0]
[1725656184904,2.05994581,121.45,121.36,15.0]
[1725656184905,8.9131591,121.37,121.36,15.0]
[1725656185084,8.9131591,121.39,121.36,15.0]
[1725656185401,17.1523591,121.37,121.36,15.0]
[1725656185577,8.9131591,121.37,121.36,15.0]
[1725656187184,17.1523591,121.37,121.36,15.0]
[1725656187384,8.9131591,121.37,121.36,15.0]
[1725656188375,8.9131591,121.39,121.36,15.0]
[1725656188597,8.9131591,121.37,121.36,15.0]
[1725656188995,17.1523591,121.37,121.36,15.0]
[1725656189193,8.9131591,121.37,121.36,15.0]
[1725656189376,8.9131591,121.39,121.36,23.2399]
[1725656189581,8.9131591,121.39,121.37,8.2391]
[1725656190011,8.9131591,121.39,121.38,8.2385]
[1725656190694,8.9131591,121.39,121.38,52.7385]
[1725656191102,8.9131591,121.41,121.39,8.2377]
[1725656191287,8.9131591,121.41,121.4,45.0]
[1725656191485,8.9131591,121.43,121.41,8.2361]
[1725656191806,8.9131591,121.39,121.36,15.0]
[1725656191996,8.9131591,121.39,121.38,8.2385]
[1725656192313,3.14672005,121.49,121.43,8.2351]
[1725656192517,8.913159,121.52,121.43,8.2351]
[1725656192809,8.232,121.48,121.43,8.2351]
[1725656192987,8.235,121.44,121.39,20.5945]
[1725656193182,2.05795945,121.47,121.36,15.0]
[1725656193183,8.2352,121.43,121.36,15.0]
[1725656193403,8.2352,121.43,121.37,8.2387]
[1725656193621,8.2346,121.44,121.36,35.5993]
[1725656193998,8.2339,121.45,121.4,8.2371]
[1725656194201,22.63520348,121.5,121.41,8.2364]
[1725656194202,8.2332,121.46,121.41,8.2364]
[1725656194499,8.2332,121.46,121.37,41.1955]
[1725656194500,31.7481,121.53,121.37,41.1955]
[1725656194701,2.05769912,121.54,121.4,12.0095]
[1725656194913,8.2311,121.49,121.44,8.2339]
[1725656195226,2.05787832,121.53,121.46,8.2329]
[1725656195405,20.5632,121.58,121.48,8.2311]
[1725656195608,8.228,121.54,121.49,8.2308]
[1725656195820,22.62037893,121.58,121.5,53.2303]
[1725656195821,8.2271,121.55,121.5,53.2303]
[1725656196128,2.05650183,121.62,121.5,45.0]
[1725656196342,29.7286,121.69,121.5,45.0]
[1725656196343,8.2232,121.61,121.56,8.2262]
[1725656196629,22.60599023,121.66,121.5,45.0]
[1725656196630,20.55,121.66,121.57,53.2256]
[1725656196932,8.2222,121.63,121.57,53.2256]
[1725656197522,2.05551693,121.68,121.57,45.0]
[1725656197813,22.59966912,121.69,121.58,20.5622]
[1725656198021,8.2203,121.65,121.59,53.2237]
[1725656198239,8.2203,121.65,121.52,12.6277]
[1725656198240,2.0551772,121.68,121.49,41.1536]
[1725656198542,10.0,121.58,121.42,20.5883]
[1725656198719,8.2318,121.48,121.42,28.8235]
[1725656198911,2.05787251,121.56,121.42,20.5883]
[1725656199120,2.05787251,121.56,121.38,20.5949]
[1725656199320,20.5728,121.52,121.36,47.5485]
[1725656199528,2.05788021,121.51,121.41,20.5913]
[1725656199713,8.2344,121.45,121.39,8.2379]
[1725656199921,22.63628135,121.5,121.37,20.5965]
[1725656200234,29.84210901,121.49,121.36,47.5485]
[1725656200445,2.05898443,121.48,121.36,47.5485]
[1725656200809,20.0,121.49,121.36,47.5485]
[1725656201028,61.7159,121.53,121.36,47.5485]
[1725656201029,22.05828256,121.52,121.36,47.5485]
[1725656201357,20.5761,121.5,121.36,47.5485]
[1725656201632,8.2359,121.42,121.36,55.7878]
[1725656201937,22.0590023,121.49,121.36,47.5485]
[1725656201938,20.5814,121.47,121.36,47.5485]
[1725656202138,8.2385,121.39,121.36,15.0]
[1725656202314,20.5869,121.44,121.36,15.0]
[1725656202516,20.0,121.43,121.36,15.0]
[1725656202712,8.2339,121.45,121.39,8.2377]
[1725656203035,20.5727,121.52,121.42,8.2357]
[1725656203411,20.5727,121.52,121.4,20.5923]
[1725656203611,8.2311,121.49,121.43,8.2349]
[1725656203835,8.2311,121.49,121.4,20.5923]
[1725656203836,20.5727,121.52,121.44,45.0]
[1725656204137,20.5674,121.56,121.44,45.0]
[1725656204338,8.2297,121.51,121.45,8.2335]